[Event "81st Italian Championship 2022"]
[Site "Cagliari"]
[Date "2022.11.18"]
[Round "6.5"]
[White "Lettieri, Giuseppe"]
[Black "Brunello, Sabino"]
[Result "0-1"]
[ECO "A37"]
[WhiteElo "2427"]
[BlackElo "2518"]
[Annotator "TA"]
[PlyCount "62"]
[EventDate "2022.11.12"]
[EventType "tourn"]
[EventCountry "ITA"]
[SourceTitle "playchess.com"]
[Source "ChessBase"]
[SourceQuality "1"]
[TimeControl "40/6000+30:20/3000:900+30"]

{[%evp 12,62,9,-3,20,2,19,22,18,19,24,22,0,0,20,-22,0,0,45,-39,-37,-44,-39,-39,-12,-96,-36,-44,0,0,0,0,0,0,0,0,0,-85,-97,-166,-179,-250,-224,-787,-797,-779,-787,-777,-771,-749,-740,-718,-684]} 1. Nf3 {[%emt 0:00:03]} c5 {[%emt 0:04:35]} 2. g3 {[%emt 0:02:49]} Nc6 {[%emt 0:01:05]} 3. Bg2 {[%emt 0:01:44]} g6 {[%emt 0:00:35]} 4. O-O {[%emt 0:08:31]} Bg7 {[%emt 0:00:08]} 5. c4 {[%emt 0:00:11]} e6 {[%emt 0:00:53]} 6. Nc3 {[%emt 0:00:40]} Nge7 {[%emt 0:01:49]} 7. d3 {[%emt 0:17:55]} h6 {[%emt 0:12:10] A37: Symmetrical English vs ...g6: 4 Bg2 Bg7 5 Nf3.} 8. Bd2 {[%emt 0:06:51] [#]} b6 $146 {[%emt 0:01:46]} ({Predecessor:} 8... d5 9. cxd5 exd5 10. e3 Be6 11. Qe2 Qd7 12. Rfd1 O-O 13. Rac1 Rac8 14. b3 b6 15. e4 {½-½ (26) Burschowsky,M-Kuntner,J Goetzis 1995}) 9. a3 {[%emt 0:01:01]} Bb7 {[%emt 0:04:16] The position is equal.} 10. b4 {[%emt 0:09:21]} d6 {[%emt 0:00:15]} 11. Rb1 {[%emt 0:05:40]} Qd7 {[%emt 0:02:00]} 12. Qc1 {[%emt 0:03:57]} Rc8 {[%emt 0:02:34]} 13. e4 {[%emt 0:12:26]} g5 {[%emt 0:05:23]} 14. b5 {[%emt 0:02:30]} Ne5 {[%emt 0:12:07]} 15. Ne1 {[%emt 0:03:27]} (15. Nxe5 $14 dxe5 16. a4 (16. Qc2 f5 $11)) 15... d5 $15 {[%emt 0:02:41]} 16. cxd5 {[%emt 0:05:17]} exd5 {[%emt 0:00:11]} 17. f4 {[%emt 0:00:17]} gxf4 {[%emt 0:04:02]} 18. gxf4 {[%emt 0:00:29]} (18. Bxf4 $11 {was the only way to keep the balance.} N5g6 19. Nxd5) 18... Ng4 {[%emt 0:00:37] Black is more active.} (18... N5g6 $1 $17 {[%cal Rg6h4] White must now prevent ...Nh4.} 19. e5 Nh4) 19. e5 $1 {[%emt 0:01:55]} Rg8 {[%emt 0:12:40]} 20. h3 {[%emt 0:09:28]} Nxe5 {[%emt 0:10:05]} 21. fxe5 {[%emt 0:00:01]} Bxe5 {[%emt 0:00:25] Threatens to win with ...Qxh3.} 22. Bf4 {[%emt 0:00:42]} Bxc3 {[%emt 0:07:34]} 23. Qxc3 {[%emt 0:00:01]} d4 $36 {[%emt 0:00:05][%mdl 2048] White is under pressure.} 24. Qd2 {[%emt 0:02:13]} (24. Qc4 $11) 24... Qxh3 $1 $17 {[%emt 0:00:29]} 25. Qe2 {[%emt 0:03:57] [#]} (25. Rf2 $17 {might work better.}) 25... Kd7 $1 $19 {[%emt 0:02:10] The board is on fire.} 26. Rf2 {[%emt 0:03:13] [#]} (26. Bh2 {was necessary.} Bxg2 27. Nxg2 Rxg2+ 28. Qxg2) 26... f6 $1 {[%emt 0:08:15][%cal Bf7f6,Bf6f5][%mdl 32] Hoping for ...Rce8.} ({Don't do} 26... Nf5 27. Qe5 $16) 27. Kf1 $2 {[%emt 0:04:12]} (27. Rb2 Nf5 28. Qf1) 27... Bxg2+ {[%emt 0:02:35][%mdl 64] Remove Defender. Black is clearly winning.} 28. Rxg2 {[%emt 0:00:05]} Qh1+ {[%emt 0:00:20]} 29. Kf2 {[%emt 0:00:04]} Rxg2+ {[%emt 0:00:22]} 30. Nxg2 {[%emt 0:00:01]} Qxb1 {[%emt 0:00:07]} 31. Qg4+ {[%emt 0:01:51]} f5 {[%emt 0:00:10] Weighted Error Value: White=0.56/Black=0.14 (very precise)} 0-1

[Event "81st Italian Championship 2022"]
[Site "Cagliari"]
[Date "2022.11.18"]
[Round "6.6"]
[White "Carnicelli, Valerio"]
[Black "Godena, Michele"]
[Result "1/2-1/2"]
[ECO "C45"]
[WhiteElo "2325"]
[BlackElo "2463"]
[Annotator "TA"]
[PlyCount "33"]
[EventDate "2022.11.12"]
[EventType "tourn"]
[EventCountry "ITA"]
[SourceTitle "playchess.com"]
[Source "ChessBase"]
[SourceQuality "1"]
[TimeControl "40/6000+30:20/3000:900+30"]

{[%evp 11,33,0,0,0,0,0,0,0,0,4,0,0,7,6,0,0,12,0,0,1,9,17,19,3]} 1. e4 {[%emt 0:00:02]} e5 {[%emt 0:00:12]} 2. Nf3 {[%emt 0:00:04]} Nc6 {[%emt 0:00:09]} 3. d4 {[%emt 0:00:04]} exd4 {[%emt 0:00:13]} 4. Nxd4 {[%emt 0:00:05]} Nf6 {[%emt 0:05:13]} 5. Nxc6 {[%emt 0:00:33]} bxc6 {[%emt 0:00:06]} 6. Nd2 {[%emt 0:00:06]} d5 {[%emt 0:06:34] The position is equal.} 7. exd5 {[%emt 0:00:33] C45: Scotch Game.} cxd5 {[%emt 0:00:11]} 8. Bb5+ {[%emt 0:00:11]} Bd7 {[%emt 0:00:07]} 9. Bxd7+ {[%emt 0:00:06]} Qxd7 {[%emt 0:00:08]} 10. O-O {[%emt 0:00:06]} Be7 {[%emt 0:00:20]} 11. b3 {[%emt 0:00:05]} O-O {[%emt 0:00:29]} 12. Bb2 {[%emt 0:00:09]} Rfe8 {[%emt 0:13:18]} 13. Re1 {[%emt 0:01:17]} Ng4 {[%emt 0:11:12] [#]} 14. Nf3 $146 {[%emt 0:19:09]} ({Predecessor:} 14. Ne4 Bf8 15. Qd2 Qc6 16. Ng3 Bc5 17. Bd4 Bxd4 18. Qxd4 Nf6 19. Nf5 Qxc2 20. Ne7+ {½-½ (55) Mosadeghpour,M (2469)-Ghaem Maghami,E (2519) Sari 2022}) 14... Bf6 {[%emt 0:04:41]} 15. Bxf6 {[%emt 0:01:04]} Rxe1+ {[%emt 0:04:22]} 16. Qxe1 {[%emt 0:00:46]} Nxf6 {[%emt 0:01:24]} 17. Rd1 {[%emt 0:04:09] A balanced but interesting game.  Weighted Error Value: White=0.00 (flawless) /Black=0.04 (flawless)} 1/2-1/2

[Event "81st Italian Championship 2022"]
[Site "Cagliari"]
[Date "2022.11.19"]
[Round "7.1"]
[White "Godena, Michele"]
[Black "Barp, Alberto"]
[Result "1-0"]
[ECO "C54"]
[WhiteElo "2463"]
[BlackElo "2412"]
[Annotator "TA"]
[PlyCount "65"]
[EventDate "2022.11.12"]
[EventType "tourn"]
[EventCountry "ITA"]
[SourceTitle "playchess.com"]
[Source "ChessBase"]
[SourceQuality "1"]
[TimeControl "40/6000+30:20/3000:900+30"]

{[%evp 10,65,18,8,15,13,18,24,19,20,19,16,20,10,13,18,21,17,6,34,17,25,41,14,181,180,170,172,175,189,170,172,235,93,100,96,140,141,141,116,117,116,116,114,116,116,138,137,172,159,176,176,163,159,167,162,422,395]} 1. e4 {[%emt 0:00:02]} e5 {[%emt 0:04:37]} 2. Nf3 {[%emt 0:00:12]} Nc6 {[%emt 0:00:48]} 3. Bc4 {[%emt 0:00:58]} Nf6 {[%emt 0:00:28]} 4. d3 {[%emt 0:01:14]} Bc5 {[%emt 0:00:14]} 5. c3 {[%emt 0:13:40]} d6 {[%emt 0:00:18]} 6. Nbd2 {[%emt 0:11:00][%cal Bb1d2,Bd2f1,Bf1g3][%mdl 32]} h6 {[%emt 0:03:03] C54: Giuoco Piano: 4 c3 Nf6, main lines with 5 d4 and 5 d3.} 7. Nf1 {[%emt 0:09:56]} O-O {[%emt 0:08:03]} 8. Ng3 {[%emt 0:04:03]} Bb6 {[%emt 0:06:45] White has an edge.} 9. O-O {[%emt 0:07:40]} Ne7 {[%emt 0:02:24]} 10. h3 {[%emt 0:16:24]} Ng6 {[%emt 0:03:47]} 11. Re1 {[%emt 0:01:33]} c6 {[%emt 0:00:36]} 12. Bb3 {[%emt 0:01:54]} d5 {[%emt 0:02:30]} 13. exd5 {[%emt 0:10:36]} Nxd5 {[%emt 0:05:48]} 14. d4 {[%emt 0:01:09]} exd4 {[%emt 0:00:10]} 15. Nxd4 {[%emt 0:00:03][%cal Bf3d4,Bd4f5,Bf5g7,Bg7e6][%mdl 32]} Bc7 {[%emt 0:11:46]} 16. Ndf5 {[%emt 0:06:16] [#]} Be6 $146 {[%emt 0:13:57] [#]} (16... Qf6 $11 {and Black stays safe.} 17. Bc2 Bxf5 18. Nxf5 Rad8) ({Predecessor:} 16... Bxf5 17. Nxf5 Qf6 18. Bxd5 Qxf5 19. Bb3 Rfe8 20. Be3 Rad8 21. Qg4 Qxg4 22. hxg4 Bb6 23. Bxb6 axb6 24. Rxe8+ Rxe8 {½-½ (51) Lu,S (2619)-Utegaliev,A (2522) Chengdu 2017}) 17. Nxg7 $1 $18 {[%emt 0:03:40][%mdl 512]} Bxg3 {[%emt 0:28:58]} 18. Nxe6 {[%emt 0:00:08]} Bxf2+ {[%emt 0:00:12]} 19. Kxf2 {[%emt 0:00:06]} fxe6+ {[%emt 0:00:10]} 20. Kg1 {[%emt 0:00:05]} Ndf4 {[%emt 0:06:42] [#]} (20... Ngf4 $142 21. Qg4+ Qg5) 21. Bxf4 {[%emt 0:12:51]} (21. Qg4 $1 $18 {is more deadly. Strongly threatening Bxf4.} Kh8 22. Bc2 (22. Bxe6 Qf6 $16)) 21... Nxf4 $16 {[%emt 0:00:16]} 22. Bxe6+ {[%emt 0:00:30]} Kg7 {[%emt 0:01:33]} 23. Qg4+ {[%emt 0:01:41]} Qg5 {[%emt 0:00:10]} 24. Rad1 {[%emt 0:01:10]} Rae8 {[%emt 0:01:26]} 25. Qxg5+ {[%emt 0:02:01]} hxg5 {[%emt 0:00:02]} 26. Bc4 {[%emt 0:01:25]} Rxe1+ {[%emt 0:03:13]} 27. Rxe1 {[%emt 0:00:01][%cal Bd1e1,Be1e7,Be7a7,Ba7a6,Ba6c6][%mdl 4128] Endgame KRB-KRN} b5 {[%emt 0:01:00]} 28. Bf1 {[%emt 0:00:26]} Rd8 {[%emt 0:00:02]} 29. Re7+ {[%emt 0:00:53]} Kf6 {[%emt 0:00:10]} 30. Rxa7 {[%emt 0:00:03]} Rd2 {[%emt 0:00:04]} 31. Ra6 {[%emt 0:00:34][%csl LRb5,LRc6]} Rxb2 {[%emt 0:00:47]} 32. Rxc6+ {[%emt 0:00:05]} Ne6 $2 {[%emt 0:02:59]} (32... Ke7 {was called for.} 33. Rc5 Kf6) 33. a4 {[%emt 0:01:46] Weighted Error Value: White=0.12 (very precise) /Black=0.28 (precise)} 1-0

[Event "81st Italian Championship 2022"]
[Site "Cagliari"]
[Date "2022.11.19"]
[Round "7.2"]
[White "Brunello, Sabino"]
[Black "Carnicelli, Valerio"]
[Result "1-0"]
[ECO "E94"]
[WhiteElo "2518"]
[BlackElo "2325"]
[Annotator "TA"]
[PlyCount "77"]
[EventDate "2022.11.12"]
[EventType "tourn"]
[EventCountry "ITA"]
[SourceTitle "playchess.com"]
[Source "ChessBase"]
[SourceQuality "1"]
[TimeControl "40/6000+30:20/3000:900+30"]

{[%evp 15,77,-1,29,27,43,27,26,25,24,25,27,23,33,33,37,17,28,22,30,13,39,37,37,19,31,27,44,20,127,120,114,114,138,119,192,202,209,209,248,255,252,242,412,312,282,291,309,192,165,53,251,247,234,240,533,528,514,381,377,366,643,625,1339,1288]} 1. d4 {[%emt 0:00:02]} Nf6 {[%emt 0:00:05]} 2. c4 {[%emt 0:00:05]} g6 {[%emt 0:00:03]} 3. Nc3 {[%emt 0:00:08]} Bg7 {[%emt 0:00:04]} 4. e4 {[%emt 0:00:05]} d6 {[%emt 0:00:03]} 5. Be2 {[%emt 0:00:21]} O-O {[%emt 0:00:05]} 6. Nf3 {[%emt 0:00:10]} Na6 {[%emt 0:00:06]} 7. O-O {[%emt 0:01:17]} e5 {[%emt 0:00:03]} 8. Re1 {[%emt 0:00:16]} Bg4 {[%emt 0:00:05]} 9. Be3 $1 {[%emt 0:01:32] 9.Be3 scores better than 9.d5. E94: King's Indian: Classical: 6 Be2 e5 7 0-0: Various Black 7th moves.} exd4 {[%emt 0:00:40]} 10. Nxd4 {[%emt 0:03:10]} ({Don't play} 10. Qxd4 Nc5 11. Bg5 (11. e5 Bxf3 12. Bxf3 Nfd7 $15) 11... Re8 $15) 10... Bxe2 {[%emt 0:00:05]} 11. Qxe2 {[%emt 0:01:33] White has an edge.} Re8 {[%emt 0:00:15]} 12. f3 {[%emt 0:00:35]} c6 {[%emt 0:01:01]} 13. Rad1 {[%emt 0:00:31]} Qe7 {[%emt 0:01:04] [#]} 14. Qd2 $146 {[%emt 0:07:23]} ({Predecessor:} 14. Qf2 Nd7 15. Nde2 Ne5 16. b3 Nc5 17. Bxc5 dxc5 18. f4 Ng4 19. Qf3 f5 20. e5 {½-½ (27) Gonda,L (2400)-Paschall,W (2394) Budapest 2004}) 14... Nd7 {[%emt 0:19:06]} 15. Kh1 {[%emt 0:00:55]} Ne5 {[%emt 0:00:38]} 16. b3 {[%emt 0:02:30]} Nc5 {[%emt 0:01:22]} 17. Bg5 {[%emt 0:05:23]} (17. Nde2 $5 {[%cal Rd2d6]}) 17... Bf6 {[%emt 0:08:40]} 18. Bxf6 {[%emt 0:13:46]} Qxf6 {[%emt 0:00:05]} 19. Nc2 {[%emt 0:01:54]} Rad8 {[%emt 0:07:59]} 20. Ne3 {[%emt 0:12:47]} a6 {[%emt 0:11:11]} 21. Rf1 {[%emt 0:17:55] aiming for b4.} (21. b4 $5 {[%cal Rb4c5]}) 21... g5 {[%emt 0:19:12]} (21... a5 $11 {remains equal.}) 22. Ne2 $16 {[%emt 0:14:53][%cal Bc3e2,Be2d4,Bd4f5][%mdl 32]} b5 {[%emt 0:02:37]} 23. cxb5 {[%emt 0:06:49]} axb5 {[%emt 0:00:06]} 24. Nd4 {[%emt 0:00:23]} Rd7 {[%emt 0:10:04]} (24... Ne6 $16) 25. Qc2 $18 {[%emt 0:01:32]} b4 {[%emt 0:08:58]} 26. Ndf5 {[%emt 0:05:03]} Red8 {[%emt 0:02:26]} 27. g3 {[%emt 0:02:53]} Qe6 {[%emt 0:02:09]} 28. Rd4 {[%emt 0:01:32]} h5 $2 {[%emt 0:03:46]} (28... f6 29. Rxb4 Kh8) 29. Rxb4 {[%emt 0:03:45]} g4 {[%emt 0:00:18]} 30. fxg4 {[%emt 0:00:06]} hxg4 {[%emt 0:00:53]} 31. Rf4 {[%emt 0:00:29] Threatens to win with Qc3.} Ncd3 {[%emt 0:01:21] [#]} 32. Qc3 {[%emt 0:02:07]} (32. Ra4 $1 $18) 32... Kf8 $2 {[%emt 0:07:55] [#] Loses the game.} (32... Nxf4 $2 33. gxf4 f6 34. fxe5 Qxe5 35. Qd2 $18) ({Black should play} 32... Nxb4 $14 33. Rxg4+ Kf8) 33. Ra4 $1 {[%emt 0:02:00]} ({Less strong is} 33. Nxg4 Nxb4 34. Qxb4 c5 $16) 33... f6 {[%emt 0:01:37]} 34. Rf1 {[%emt 0:01:54] And now Rd4 would win.} Rh7 $2 {[%emt 0:00:02]} (34... Nc5) 35. Rd4 {[%emt 0:00:53]} Nc5 {[%emt 0:03:24] [#]} 36. Rxd6 $1 {[%emt 0:01:13][%mdl 512]} Rxd6 {[%emt 0:00:01]} 37. Qxc5 {[%emt 0:00:07][%mdl 64] Pin. Chess con chili.} Nf7 {[%emt 0:00:13]} (37... Rhd7 38. Nxd6 Nd3 39. Qxc6 Rxd6 40. Qa8+ Kf7) 38. Nxd6 {[%emt 0:00:27]} Nxd6 {[%emt 0:00:02]} 39. e5 {[%emt 0:00:18] Weighted Error Value: White=0.23 (precise) /Black=0.60} 1-0

[Event "81st Italian Championship 2022"]
[Site "Cagliari"]
[Date "2022.11.19"]
[Round "7.3"]
[White "Basso, Pier Luigi"]
[Black "Lettieri, Giuseppe"]
[Result "1-0"]
[ECO "B76"]
[WhiteElo "2503"]
[BlackElo "2427"]
[Annotator "TA"]
[PlyCount "127"]
[EventDate "2022.11.12"]
[EventType "tourn"]
[EventCountry "ITA"]
[SourceTitle "playchess.com"]
[Source "ChessBase"]
[SourceQuality "1"]
[TimeControl "40/6000+30:20/3000:900+30"]

{[%evp 26,127,34,23,33,21,38,7,60,54,83,83,96,93,94,95,94,94,83,59,75,0,89,88,92,87,109,107,96,65,68,66,72,50,58,58,60,56,55,49,54,54,55,54,72,56,102,81,80,75,66,64,51,55,69,73,87,87,83,77,154,96,181,170,497,462,594,599,624,480,832,822,1505,1607,1725,1647,1471,962,1031,995,5804,5639,29965,29966,29966,4610,29969,29967,29971,29972,29972,29973,29973,29974,29974,29975,29975,29976,29976,29977,29977,29978,29978,29976]} 1. e4 {[%emt 0:00:04]} c5 {[%emt 0:00:08]} 2. Nf3 {[%emt 0:00:07]} d6 {[%emt 0:00:18]} 3. d4 {[%emt 0:00:07]} cxd4 {[%emt 0:00:04]} 4. Nxd4 {[%emt 0:00:05]} Nf6 {[%emt 0:00:07]} 5. Nc3 {[%emt 0:00:06]} g6 {[%emt 0:00:02]} 6. Be3 {[%emt 0:00:44]} Bg7 {[%emt 0:00:05]} 7. f3 {[%emt 0:00:13]} O-O {[%emt 0:00:27]} 8. Qd2 {[%emt 0:00:06]} Nc6 {[%emt 0:00:04]} 9. O-O-O {[%emt 0:00:13]} d5 {[%emt 0:00:43]} 10. exd5 {[%emt 0:00:38]} Nxd5 {[%emt 0:00:07]} 11. Nxc6 {[%emt 0:00:07]} bxc6 {[%emt 0:00:02]} 12. Bd4 {[%emt 0:00:13]} Bxd4 {[%emt 0:03:27]} 13. Qxd4 {[%emt 0:00:22]} Qb6 {[%emt 0:00:05]} 14. Na4 {[%emt 0:01:36]} Qc7 {[%emt 0:00:08] 14...Qc7 is better than 14...Qa5. B76: Sicilian Dragon: Yugoslav Attack, 9 g4 and 9 0-0-0.} 15. g3 {[%emt 0:00:31] [#]} Nb6 $146 {[%emt 0:36:50]} ({Predecessor:} 15... Rd8 16. Qc5 Be6 17. Bc4 Rd6 18. Rhe1 Rad8 19. b3 R6d7 20. Be2 Bf5 21. f4 Rb8 22. Nc3 e6 23. Bf3 h5 {½-½ (23) Kubicki,T (2490)-Benz,G (2513) ICCF email 2020}) 16. Nc3 {[%emt 0:03:22]} Bf5 {[%emt 0:03:33]} (16... c5 $11 17. Qe3 Bb7) 17. Qc5 $14 {[%emt 0:05:29]} Qb7 {[%emt 0:20:10]} 18. Bd3 {[%emt 0:09:27]} Bxd3 {[%emt 0:05:38]} 19. Rxd3 {[%emt 0:01:16]} Rfd8 {[%emt 0:00:24]} 20. Rhd1 {[%emt 0:00:37]} Rxd3 {[%emt 0:00:16]} 21. Rxd3 {[%emt 0:00:07]} Re8 {[%emt 0:02:29]} 22. Qd4 {[%emt 0:11:21] White has more active pieces.} Qc8 {[%emt 0:02:48]} 23. Qc5 {[%emt 0:08:31]} Qb7 $1 {[%emt 0:16:32]} 24. b3 {[%emt 0:02:32]} Nd7 {[%emt 0:02:11]} 25. Qd4 {[%emt 0:00:26]} Nf8 {[%emt 0:00:31]} 26. Na4 {[%emt 0:02:45]} Ne6 {[%emt 0:02:37]} 27. Qd7 {[%emt 0:03:53]} Rb8 {[%emt 0:00:18]} 28. Qxb7 {[%emt 0:03:47]} Rxb7 {[%emt 0:00:01][%mdl 4096] Endgame KRN-KRN} 29. Kb2 {[%emt 0:01:00]} Kf8 {[%emt 0:00:47]} 30. Rc3 {[%emt 0:08:04]} Rc7 {[%emt 0:00:38]} 31. b4 {[%emt 0:01:22]} Ke8 {[%emt 0:00:26]} 32. Kb3 {[%emt 0:00:17]} Kd8 {[%emt 0:02:03]} 33. Nc5 {[%emt 0:02:51] Against Rd7} Nxc5+ {[%emt 0:04:02]} 34. Rxc5 {[%emt 0:00:02] KR-KR} Kd7 {[%emt 0:05:30]} 35. Kc4 {[%emt 0:02:11]} Kd6 {[%emt 0:02:40]} (35... Kc8 $14) 36. Ra5 {[%emt 0:00:38]} e5 {[%emt 0:01:28]} 37. Ra3 {[%emt 0:00:15]} Re7 {[%emt 0:00:39]} 38. Rd3+ {[%emt 0:02:17]} Kc7 $1 {[%emt 0:00:06]} 39. Kc5 {[%emt 0:00:39]} Re6 {[%emt 0:00:18] Against Rd6} 40. Re3 {[%emt 0:01:30] Black is now going downhill.} f5 {[%emt 0:01:14]} 41. c4 {[%emt 0:50:45]} h5 {[%emt 0:25:24]} 42. h4 {[%emt 0:00:00]} Kd7 {[%emt 0:03:38]} (42... Kb7 $142) 43. a4 {[%emt 0:00:00]} ({White should try} 43. Ra3) 43... Ke7 {[%emt 0:08:56]} (43... Kc8 $16 {is a better defense.}) 44. b5 $18 {[%emt 0:00:00]} cxb5 $2 {[%emt 0:00:00]} (44... Kd7 {is a better chance.} 45. b6 a5) 45. axb5 {[%emt 0:00:00] [#] And now Ra3 would win.} Kf6 {[%emt 0:00:54]} 46. Kd5 {[%emt 0:00:00] Threatens to win with c5.} (46. Ra3 Re7 47. Ra6+ Kf7 $18) 46... Re8 {[%emt 0:01:25]} 47. c5 {[%emt 0:00:00]} Rd8+ {[%emt 0:00:00]} (47... Rb8 $142 48. Rb3 e4 49. fxe4 Rd8+ 50. Kc6 fxe4) 48. Kc6 {[%emt 0:00:00]} Ke6 {[%emt 0:05:35]} 49. b6 {[%emt 0:00:00]} axb6 {[%emt 0:00:00]} 50. cxb6 {[%emt 0:00:00]} Rc8+ {[%emt 0:00:00]} 51. Kb5 {[%emt 0:00:00] [#] Black must now prevent b7.} Rc1 {[%emt 0:00:00]} 52. Ra3 {[%emt 0:00:00]} e4 {[%emt 0:00:00]} 53. fxe4 {[%emt 0:00:00]} fxe4 {[%emt 0:00:00]} 54. b7 {[%emt 0:00:00]} Rb1+ {[%emt 0:03:02]} 55. Ka6 {[%emt 0:00:00]} (55. Kc6 $142 Rc1+ 56. Kb6 Rb1+ 57. Ka7 Kf7 58. b8=Q Rxb8 59. Kxb8 Kf6 60. Kc7) 55... Kd5 {[%emt 0:00:23]} 56. Ka7 {[%emt 0:00:00] White mates.} Kd4 {[%emt 0:00:00]} 57. b8=Q {[%emt 0:00:00]} Rxb8 {[%emt 0:00:00]} 58. Kxb8 {[%emt 0:00:00] KR-K3P} ({Inferior is} 58. Ra4+ Kd3 59. Ra3+ (59. Kxb8 e3 $11) 59... Kd2 60. Ra2+ (60. Kxb8 e3 $11) 60... Kd3 61. Ra3+ (61. Kxb8 e3 $11) 61... Kd2 62. Kxb8 (62. Ra2+ Kd3 $11) 62... e3 $11) 58... e3 {[%emt 0:00:00]} 59. Kc7 {[%emt 0:00:00]} ({And not} 59. Ra2 Kd3 60. Ra6 (60. Ra3+ Kd2 $11) 60... e2 $11) 59... e2 {[%emt 0:00:00]} 60. Ra1 {[%emt 0:00:00]} Ke3 {[%emt 0:00:00]} 61. Kd6 {[%emt 0:00:00]} Kf2 {[%emt 0:14:35]} 62. Ke5 {[%emt 0:00:00]} Kxg3 {[%emt 0:01:35]} 63. Ke4 {[%emt 0:00:00]} Kxh4 {[%emt 0:00:00]} 64. Kf3 {[%emt 0:00:00] Weighted Error Value: White=0.10 (very precise) /Black=0.47} 1-0